[Event "Early-Titled-Tuesday-Blitz-March-05-2024"]
[Site "Chess.com"]
[Date "2024.03.05"]
[Round "5"]
[White "Veganator13"]
[Black "LileKoridze"]
[Result "1/2-1/2"]
[WhiteElo "2305"]
[BlackElo "2428"]
[TimeControl "180+1"]
[EndTime "8:59:52 PST"]
[Termination "Game drawn - insufficient material"]

1. c4 {[%clk 0:02:59.3]} 1... e5 {[%clk 0:02:59.7]} 2. g3 {[%clk 0:02:58.4]}
2... Nf6 {[%clk 0:02:59.4]} 3. Bg2 {[%clk 0:02:57.9]} 3... Nc6 {[%clk 0:02:59]}
4. Nc3 {[%clk 0:02:55]} 4... Bb4 {[%clk 0:02:55.6]} 5. Nd5 {[%clk 0:02:54]} 5...
O-O {[%clk 0:02:51.5]} 6. a3 {[%clk 0:02:49.6]} 6... Bd6 {[%clk 0:02:47.2]} 7.
e3 {[%clk 0:02:46]} 7... b6 {[%clk 0:02:45.1]} 8. Ne2 {[%clk 0:02:45.2]} 8...
Bb7 {[%clk 0:02:44.8]} 9. O-O {[%clk 0:02:44.7]} 9... a5 {[%clk 0:02:40]} 10. b3
{[%clk 0:02:43.4]} 10... Nxd5 {[%clk 0:02:38.3]} 11. cxd5 {[%clk 0:02:43]} 11...
Ne7 {[%clk 0:02:35.7]} 12. Nc3 {[%clk 0:02:41.6]} 12... c6 {[%clk 0:02:35.1]}
13. dxc6 {[%clk 0:02:35.6]} 13... Bxc6 {[%clk 0:02:35.4]} 14. d4 {[%clk
0:02:33.7]} 14... Bxg2 {[%clk 0:02:34.3]} 15. Kxg2 {[%clk 0:02:33.6]} 15... Qc8
{[%clk 0:02:32]} 16. Bb2 {[%clk 0:02:16.7]} 16... Qb7+ {[%clk 0:02:31.6]} 17. f3
{[%clk 0:02:13.8]} 17... exd4 {[%clk 0:02:30.8]} 18. Qxd4 {[%clk 0:02:12.7]}
18... Bc5 {[%clk 0:02:31]} 19. Qd3 {[%clk 0:02:09.9]} 19... d5 {[%clk 0:02:25]}
20. Rad1 {[%clk 0:02:09]} 20... Rfd8 {[%clk 0:02:23.7]} 21. Ne2 {[%clk
0:02:03.9]} 21... Qc8 {[%clk 0:02:20.3]} 22. b4 {[%clk 0:01:53.7]} 22... axb4
{[%clk 0:02:06.6]} 23. axb4 {[%clk 0:01:54.6]} 23... Bxb4 {[%clk 0:02:06.5]} 24.
Qd4 {[%clk 0:01:53.9]} 24... Nf5 {[%clk 0:02:06.7]} 25. Qxb4 {[%clk 0:01:52.3]}
25... Nxe3+ {[%clk 0:01:54.9]} 26. Kh1 {[%clk 0:01:51.6]} 26... Nxf1 {[%clk
0:01:45.8]} 27. Qd4 {[%clk 0:01:44.3]} 27... f6 {[%clk 0:01:33.6]} 28. Rxf1
{[%clk 0:01:43.2]} 28... Qc2 {[%clk 0:01:26.3]} 29. Nf4 {[%clk 0:01:34.4]} 29...
Ra2 {[%clk 0:01:25.6]} 30. Nd3 {[%clk 0:01:34.1]} 30... Qe2 {[%clk 0:01:20.4]}
31. Kg1 {[%clk 0:01:32.7]} 31... b5 {[%clk 0:00:59.5]} 32. Rf2 {[%clk
0:01:21.1]} 32... Qd1+ {[%clk 0:00:51.6]} 33. Kg2 {[%clk 0:01:20.4]} 33... Ra4
{[%clk 0:00:42]} 34. Qb6 {[%clk 0:01:18.7]} 34... Raa8 {[%clk 0:00:26.9]} 35.
Nf4 {[%clk 0:00:31.6]} 35... Rab8 {[%clk 0:00:18.6]} 36. Qe6+ {[%clk 0:00:29.4]}
36... Kh8 {[%clk 0:00:19]} 37. Nh5 {[%clk 0:00:29.5]} 37... Rb7 {[%clk
0:00:17.1]} 38. Re2 {[%clk 0:00:27.5]} 38... h6 {[%clk 0:00:07.9]} 39. Nxf6
{[%clk 0:00:24.8]} 39... Rf8 {[%clk 0:00:07.5]} 40. Nh5 {[%clk 0:00:23.9]} 40...
Rb6 {[%clk 0:00:07.1]} 41. Qe3 {[%clk 0:00:21.7]} 41... Rb7 {[%clk 0:00:06.7]}
42. Rd2 {[%clk 0:00:21.6]} 42... Qa4 {[%clk 0:00:05.5]} 43. Qxh6+ {[%clk
0:00:21.6]} 43... Kg8 {[%clk 0:00:05.7]} 44. Qe6+ {[%clk 0:00:21.8]} 44... Kh7
{[%clk 0:00:05.5]} 45. Nf4 {[%clk 0:00:21.5]} 45... Qb3 {[%clk 0:00:04.6]} 46.
Qxd5 {[%clk 0:00:19]} 46... Qxd5 {[%clk 0:00:03.6]} 47. Rxd5 {[%clk 0:00:19.8]}
47... b4 {[%clk 0:00:03.3]} 48. Rh5+ {[%clk 0:00:17.8]} 48... Kg8 {[%clk
0:00:03.4]} 49. Rg5 {[%clk 0:00:18]} 49... Rc8 {[%clk 0:00:03.6]} 50. Kh3 {[%clk
0:00:16.8]} 50... Rc2 {[%clk 0:00:03.7]} 51. Be5 {[%clk 0:00:17.1]} 51... b3
{[%clk 0:00:04.3]} 52. Ne6 {[%clk 0:00:15.7]} 52... b2 {[%clk 0:00:04.4]} 53.
Bxb2 {[%clk 0:00:15.3]} 53... Rcxb2 {[%clk 0:00:05]} 54. Kg4 {[%clk 0:00:15.5]}
54... R2b4+ {[%clk 0:00:04.7]} 55. f4 {[%clk 0:00:15.9]} 55... R4b5 {[%clk
0:00:05]} 56. f5 {[%clk 0:00:14.1]} 56... Rb4+ {[%clk 0:00:05.1]} 57. Nf4 {[%clk
0:00:13.9]} 57... Rb3 {[%clk 0:00:05]} 58. h4 {[%clk 0:00:13.4]} 58... Rb2
{[%clk 0:00:05.2]} 59. h5 {[%clk 0:00:13.7]} 59... Rh2 {[%clk 0:00:05.5]} 60.
Ne6 {[%clk 0:00:10.9]} 60... Rb4+ {[%clk 0:00:04.9]} 61. Nf4 {[%clk 0:00:11.3]}
61... Rb7 {[%clk 0:00:05.2]} 62. f6 {[%clk 0:00:11.1]} 62... Kh7 {[%clk
0:00:04.7]} 63. Rg6 {[%clk 0:00:07.5]} 63... gxf6 {[%clk 0:00:04.7]} 64. Rxf6
{[%clk 0:00:07.7]} 64... Rg7+ {[%clk 0:00:05.1]} 65. Rg6 {[%clk 0:00:07.6]}
65... Rxg6+ {[%clk 0:00:05.4]} 66. Nxg6 {[%clk 0:00:08.5]} 66... Kg7 {[%clk
0:00:05.7]} 67. Nh4 {[%clk 0:00:09.4]} 67... Rb2 {[%clk 0:00:05.5]} 68. Nf5+
{[%clk 0:00:09.8]} 68... Kf6 {[%clk 0:00:05.6]} 69. Nh4 {[%clk 0:00:09.8]} 69...
Rb4+ {[%clk 0:00:05.7]} 70. Kh3 {[%clk 0:00:10.2]} 70... Kg5 {[%clk 0:00:06.1]}
71. h6 {[%clk 0:00:10.4]} 71... Kxh6 {[%clk 0:00:06.2]} 72. Ng2 {[%clk
0:00:10.6]} 72... Kg5 {[%clk 0:00:06.5]} 73. Nf4 {[%clk 0:00:11]} 73... Rxf4
{[%clk 0:00:06.1]} 74. gxf4+ {[%clk 0:00:11.1]} 74... Kxf4 {[%clk 0:00:07]}
1/2-1/2

[Event "Early-Titled-Tuesday-Blitz-March-05-2024"]
[Site "Chess.com"]
[Date "2024.03.05"]
[Round "5"]
[White "Chessmissile07"]
[Black "BogdanDeac"]
[Result "1-0"]
[WhiteElo "2918"]
[BlackElo "2994"]
[TimeControl "180+1"]
[EndTime "8:59:55 PST"]
[Termination "Chessmissile07 won by resignation"]

1. a3 {[%clk 0:03:00.9]} 1... e5 {[%clk 0:02:58.2]} 2. e4 {[%clk 0:03:00.7]}
2... Nf6 {[%clk 0:02:57.5]} 3. Nc3 {[%clk 0:03:00.9]} 3... d5 {[%clk 0:02:56.6]}
4. exd5 {[%clk 0:03:00.6]} 4... Nxd5 {[%clk 0:02:57.5]} 5. Qf3 {[%clk
0:03:00.8]} 5... Nf6 {[%clk 0:02:51.4]} 6. Bb5+ {[%clk 0:02:59.3]} 6... c6
{[%clk 0:02:50.7]} 7. Bc4 {[%clk 0:02:58.7]} 7... Be7 {[%clk 0:02:50.8]} 8. Nge2
{[%clk 0:02:56.8]} 8... O-O {[%clk 0:02:50.4]} 9. h3 {[%clk 0:02:56.7]} 9... Qc7
{[%clk 0:02:47.7]} 10. d3 {[%clk 0:02:55]} 10... b5 {[%clk 0:02:34.2]} 11. Ba2
{[%clk 0:02:45.7]} 11... Nbd7 {[%clk 0:02:27.2]} 12. Bg5 {[%clk 0:02:29.2]}
12... a5 {[%clk 0:02:13.3]} 13. O-O {[%clk 0:02:22.6]} 13... Rb8 {[%clk
0:02:05.8]} 14. Ng3 {[%clk 0:02:14.7]} 14... Nc5 {[%clk 0:02:05]} 15. Bxf6
{[%clk 0:01:42.9]} 15... Bxf6 {[%clk 0:02:02.1]} 16. Nce4 {[%clk 0:01:43.2]}
16... Nxe4 {[%clk 0:01:56.7]} 17. dxe4 {[%clk 0:01:42.7]} 17... Bg5 {[%clk
0:01:30]} 18. Rad1 {[%clk 0:01:38.6]} 18... g6 {[%clk 0:01:26]} 19. Rd3 {[%clk
0:01:22]} 19... c5 {[%clk 0:00:27.1]} 20. Bd5 {[%clk 0:01:17.6]} 20... c4 {[%clk
0:00:26.6]} 21. Rdd1 {[%clk 0:01:16.7]} 21... b4 {[%clk 0:00:22.5]} 22. axb4
{[%clk 0:01:14.3]} 22... axb4 {[%clk 0:00:23.4]} 23. Ra1 {[%clk 0:01:07.3]}
23... Kg7 {[%clk 0:00:22.3]} 24. Qe2 {[%clk 0:00:47.1]} 24... c3 {[%clk
0:00:19]} 25. b3 {[%clk 0:00:45.2]} 25... Bd7 {[%clk 0:00:18.4]} 26. Bc4 {[%clk
0:00:35]} 26... Bf4 {[%clk 0:00:13.2]} 27. Ra6 {[%clk 0:00:26]} 27... Bc8 {[%clk
0:00:08.4]} 28. Ra4 {[%clk 0:00:24]} 28... Bd7 {[%clk 0:00:08.4]} 29. Ra6 {[%clk
0:00:23.3]} 29... Ra8 {[%clk 0:00:05.2]} 30. Rfa1 {[%clk 0:00:23.3]} 30... Rxa6
{[%clk 0:00:05.2]} 31. Rxa6 {[%clk 0:00:24.2]} 31... Bc6 {[%clk 0:00:05.5]} 32.
Bd5 {[%clk 0:00:14.8]} 32... Bxd5 {[%clk 0:00:05.4]} 33. exd5 {[%clk 0:00:15.7]}
33... Qc5 {[%clk 0:00:05.4]} 34. Qd3 {[%clk 0:00:04.2]} 34... Rd8 {[%clk
0:00:04.7]} 35. Ne4 {[%clk 0:00:03.3]} 35... Qxd5 {[%clk 0:00:04.4]} 36. Qxd5
{[%clk 0:00:03.9]} 36... Rxd5 {[%clk 0:00:04.6]} 37. g3 {[%clk 0:00:04.8]} 37...
Rd1+ {[%clk 0:00:05]} 38. Kg2 {[%clk 0:00:04.8]} 38... Bd2 {[%clk 0:00:05.6]}
39. Rb6 {[%clk 0:00:04.8]} 39... Rc1 {[%clk 0:00:05.8]} 40. Rxb4 {[%clk
0:00:04.6]} 40... Rxc2 {[%clk 0:00:06.3]} 41. Rc4 {[%clk 0:00:05.3]} 41... Rb2
{[%clk 0:00:06.4]} 42. Nxc3 {[%clk 0:00:04.9]} 42... Rxb3 {[%clk 0:00:06.4]} 43.
Ne4 {[%clk 0:00:05.5]} 43... Bb4 {[%clk 0:00:06.4]} 44. Rc7 {[%clk 0:00:05.8]}
44... h6 {[%clk 0:00:06.3]} 45. Rb7 {[%clk 0:00:05.8]} 45... Kf8 {[%clk
0:00:05.9]} 46. Nd6 {[%clk 0:00:03.7]} 46... f5 {[%clk 0:00:05.4]} 47. Nc4
{[%clk 0:00:02.7]} 47... e4 {[%clk 0:00:04.7]} 48. Ne5 {[%clk 0:00:02.8]} 48...
Rb2 {[%clk 0:00:04.9]} 49. Nxg6+ {[%clk 0:00:02.8]} 49... Ke8 {[%clk 0:00:05.4]}
50. Ne5 {[%clk 0:00:02.6]} 50... e3 {[%clk 0:00:05]} 51. Nd3 {[%clk 0:00:02.2]}
51... e2 {[%clk 0:00:05.1]} 52. Kf3 {[%clk 0:00:01.1]} 52... Rd2 {[%clk
0:00:04.7]} 53. Rb8+ {[%clk 0:00:01.5]} 53... Ke7 {[%clk 0:00:04.2]} 54. Rxb4
{[%clk 0:00:02]} 54... Rxd3+ {[%clk 0:00:04.6]} 55. Kxe2 {[%clk 0:00:02.6]}
55... Rd6 {[%clk 0:00:05.2]} 56. Rh4 {[%clk 0:00:03.2]} 56... Kf7 {[%clk
0:00:05.1]} 57. Kf3 {[%clk 0:00:04.1]} 57... Kg6 {[%clk 0:00:05.2]} 58. Kg2
{[%clk 0:00:04.6]} 58... Rb6 {[%clk 0:00:05]} 59. Rf4 {[%clk 0:00:05.1]} 59...
h5 {[%clk 0:00:04.2]} 60. h4 {[%clk 0:00:05.4]} 60... Rc6 {[%clk 0:00:04.3]} 61.
Rd4 {[%clk 0:00:05.3]} 61... Rf6 {[%clk 0:00:04.1]} 62. Kf3 {[%clk 0:00:05.2]}
62... Rb6 {[%clk 0:00:03.9]} 63. Kf4 {[%clk 0:00:05.5]} 63... Ra6 {[%clk
0:00:02.6]} 64. Ke5 {[%clk 0:00:05.6]} 64... Ra2 {[%clk 0:00:01.6]} 65. Rd6+
{[%clk 0:00:05.6]} 65... Kg7 {[%clk 0:00:01.7]} 66. Kxf5 {[%clk 0:00:02.8]}
66... Rxf2+ {[%clk 0:00:01.8]} 67. Kg5 {[%clk 0:00:03.4]} 67... Rf3 {[%clk
0:00:01.8]} 68. Rg6+ {[%clk 0:00:03.3]} 68... Kh7 {[%clk 0:00:02]} 69. Kxh5
{[%clk 0:00:04]} 69... Rf5+ {[%clk 0:00:02.5]} 70. Rg5 {[%clk 0:00:04.5]} 70...
Rf6 {[%clk 0:00:03.1]} 71. Kg4 {[%clk 0:00:04.6]} 71... Rb6 {[%clk 0:00:03]} 72.
Rc5 {[%clk 0:00:05]} 72... Rb4+ {[%clk 0:00:03.3]} 73. Kg5 {[%clk 0:00:05.2]}
73... Rb7 {[%clk 0:00:03.9]} 74. g4 {[%clk 0:00:05.5]} 74... Rg7+ {[%clk
0:00:03.6]} 75. Kh5 {[%clk 0:00:05.8]} 75... Re7 {[%clk 0:00:03.9]} 76. g5
{[%clk 0:00:06]} 1-0

[Event "Early-Titled-Tuesday-Blitz-March-05-2024"]
[Site "Chess.com"]
[Date "2024.03.05"]
[Round "5"]
[White "tarno17"]
[Black "Supergiuly"]
[Result "1-0"]
[WhiteElo "2164"]
[BlackElo "2341"]
[TimeControl "180+1"]
[EndTime "9:00:02 PST"]
[Termination "tarno17 won by resignation"]

1. e4 {[%clk 0:03:00.9]} 1... b6 {[%clk 0:02:52.4]} 2. d4 {[%clk 0:02:59.8]}
2... Bb7 {[%clk 0:02:53.3]} 3. Nc3 {[%clk 0:02:58.9]} 3... g6 {[%clk 0:02:52.9]}
4. Be3 {[%clk 0:02:57.9]} 4... Bg7 {[%clk 0:02:53.6]} 5. Qd2 {[%clk 0:02:57.5]}
5... e6 {[%clk 0:02:53.2]} 6. f4 {[%clk 0:02:38.5]} 6... Ne7 {[%clk 0:02:51.7]}
7. Nf3 {[%clk 0:02:37.6]} 7... O-O {[%clk 0:02:51.1]} 8. Bd3 {[%clk 0:02:34.8]}
8... d5 {[%clk 0:02:50.2]} 9. O-O {[%clk 0:01:52.3]} 9... Nd7 {[%clk 0:02:46.7]}
10. f5 {[%clk 0:01:49.6]} 10... exf5 {[%clk 0:02:44.7]} 11. exf5 {[%clk
0:01:48.8]} 11... c5 {[%clk 0:02:26]} 12. fxg6 {[%clk 0:01:22.4]} 12... fxg6
{[%clk 0:02:22.3]} 13. Bh6 {[%clk 0:01:00.7]} 13... Nf5 {[%clk 0:02:07.7]} 14.
Bxg7 {[%clk 0:00:54.5]} 14... Kxg7 {[%clk 0:02:08.6]} 15. Ng5 {[%clk 0:00:53.3]}
15... Nxd4 {[%clk 0:01:40]} 16. Rxf8 {[%clk 0:00:29.3]} 16... Nxf8 {[%clk
0:01:36.5]} 17. Rf1 {[%clk 0:00:30]} 17... Qe7 {[%clk 0:01:08.5]} 18. Rf7+
{[%clk 0:00:29.2]} 18... Qxf7 {[%clk 0:01:07.2]} 19. Nxf7 {[%clk 0:00:30.1]}
19... Kxf7 {[%clk 0:01:07.9]} 20. Qf2+ {[%clk 0:00:29.2]} 20... Kg7 {[%clk
0:01:05.7]} 21. Qf4 {[%clk 0:00:21.3]} 21... Rd8 {[%clk 0:00:42.4]} 22. Bb5
{[%clk 0:00:15.5]} 22... Nfe6 {[%clk 0:00:38.5]} 23. Qe5+ {[%clk 0:00:13.4]}
23... Kg8 {[%clk 0:00:37.5]} 24. Be2 {[%clk 0:00:07.1]} 24... Re8 {[%clk
0:00:19.8]} 25. Bg4 {[%clk 0:00:07.2]} 25... Bc6 {[%clk 0:00:10.3]} 26. h3
{[%clk 0:00:05.4]} 26... b5 {[%clk 0:00:09.3]} 27. a3 {[%clk 0:00:04.7]} 27...
b4 {[%clk 0:00:09.2]} 28. axb4 {[%clk 0:00:05.2]} 28... cxb4 {[%clk 0:00:10.1]}
29. Bxe6+ {[%clk 0:00:05]} 29... Rxe6 {[%clk 0:00:09.7]} 30. Qxd4 {[%clk
0:00:05.1]} 30... bxc3 {[%clk 0:00:10.1]} 31. Qxc3 {[%clk 0:00:05.3]} 31... Kf7
{[%clk 0:00:10.1]} 32. Qc5 {[%clk 0:00:05.2]} 32... Kg7 {[%clk 0:00:08]} 33.
Qxa7+ {[%clk 0:00:05.7]} 33... Kh6 {[%clk 0:00:07.8]} 34. Qd4 {[%clk 0:00:06.2]}
34... Re4 {[%clk 0:00:03.9]} 35. Qd2+ {[%clk 0:00:06.7]} 35... Kg7 {[%clk
0:00:03.7]} 36. b3 {[%clk 0:00:06.4]} 36... Kf7 {[%clk 0:00:03.5]} 37. Qf2+
{[%clk 0:00:05.1]} 37... Ke6 {[%clk 0:00:03.7]} 38. Qb6 {[%clk 0:00:05.6]} 38...
Kd6 {[%clk 0:00:03.8]} 39. Qb8+ {[%clk 0:00:05.6]} 39... Kc5 {[%clk 0:00:03.8]}
40. Qf8+ {[%clk 0:00:05.7]} 40... Kb5 {[%clk 0:00:03.9]} 41. Qa3 {[%clk
0:00:05.6]} 41... Re1+ {[%clk 0:00:04]} 42. Kf2 {[%clk 0:00:05.5]} 42... Re4
{[%clk 0:00:04.1]} 43. Qc1 {[%clk 0:00:04.6]} 43... Kc5 {[%clk 0:00:04.5]} 44.
c4 {[%clk 0:00:04.6]} 44... Kd6 {[%clk 0:00:04.4]} 45. cxd5 {[%clk 0:00:04.4]}
45... Bxd5 {[%clk 0:00:05.3]} 46. Qc3 {[%clk 0:00:02.3]} 46... Ke6 {[%clk
0:00:05.3]} 47. Qc8+ {[%clk 0:00:02.1]} 47... Ke5 {[%clk 0:00:05.3]} 48. Qe8+
{[%clk 0:00:02.1]} 48... Kd4 {[%clk 0:00:05.3]} 49. Qh8+ {[%clk 0:00:02.8]}
49... Kd3 {[%clk 0:00:04.4]} 50. Qb2 {[%clk 0:00:03.3]} 50... Rf4+ {[%clk
0:00:03.5]} 51. Kg3 {[%clk 0:00:02.8]} 51... Rf5 {[%clk 0:00:03]} 52. Qb1+
{[%clk 0:00:02.8]} 52... Kd4 {[%clk 0:00:03.2]} 53. Qd1+ {[%clk 0:00:02.9]}
53... Kc5 {[%clk 0:00:03.4]} 54. Qd3 {[%clk 0:00:02.4]} 54... Kd6 {[%clk
0:00:03.6]} 55. b4 {[%clk 0:00:02.4]} 55... Kc6 {[%clk 0:00:04]} 56. b5+ {[%clk
0:00:02.6]} 56... Kb6 {[%clk 0:00:04.5]} 57. Kh2 {[%clk 0:00:02.2]} 57... Be6
{[%clk 0:00:03.3]} 58. Qd4+ {[%clk 0:00:02]} 58... Kxb5 {[%clk 0:00:03.2]} 59.
Qd6 {[%clk 0:00:02.8]} 59... Bd5 {[%clk 0:00:02.7]} 60. Qd7+ {[%clk 0:00:03.3]}
60... Kc4 {[%clk 0:00:03]} 61. Qc7+ {[%clk 0:00:03.9]} 61... Kd4 {[%clk
0:00:03.3]} 62. Qxh7 {[%clk 0:00:04]} 62... Ke4 {[%clk 0:00:03.6]} 63. Qxg6
{[%clk 0:00:04.5]} 63... Ke5 {[%clk 0:00:03.9]} 64. Qg3+ {[%clk 0:00:04.8]}
64... Rf4 {[%clk 0:00:04]} 65. h4 {[%clk 0:00:04.6]} 65... Kf5 {[%clk
0:00:03.8]} 66. Qg5+ {[%clk 0:00:05.2]} 66... Ke4 {[%clk 0:00:04.2]} 67. Qe7+
{[%clk 0:00:04.7]} 67... Kd4 {[%clk 0:00:04.1]} 68. Kh3 {[%clk 0:00:04.8]} 68...
Re4 {[%clk 0:00:03.4]} 69. Qg7+ {[%clk 0:00:04.4]} 69... Kd3 {[%clk 0:00:03.7]}
70. g3 {[%clk 0:00:04.3]} 70... Re3 {[%clk 0:00:03.9]} 71. Qg6+ {[%clk
0:00:04.7]} 71... Be4 {[%clk 0:00:03.6]} 72. Qd6+ {[%clk 0:00:05.4]} 72... Ke2
{[%clk 0:00:03.8]} 73. Qb4 {[%clk 0:00:04.7]} 73... Kf2 {[%clk 0:00:04]} 74.
Qb2+ {[%clk 0:00:04.8]} 74... Re2 {[%clk 0:00:04.3]} 75. Qd4+ {[%clk 0:00:05.4]}
75... Re3 {[%clk 0:00:04.2]} 76. h5 {[%clk 0:00:05.2]} 76... Ke2 {[%clk
0:00:02.1]} 77. h6 {[%clk 0:00:04.3]} 77... Bf3 {[%clk 0:00:01.8]} 78. Kh4
{[%clk 0:00:03.5]} 78... Re4+ {[%clk 0:00:01.7]} 79. Qxe4+ {[%clk 0:00:03.3]}
79... Bxe4 {[%clk 0:00:02.6]} 80. g4 {[%clk 0:00:03.2]} 80... Bh7 {[%clk
0:00:03.1]} 81. Kh5 {[%clk 0:00:03.2]} 81... Kf3 {[%clk 0:00:03.4]} 82. g5
{[%clk 0:00:04]} 82... Kf4 {[%clk 0:00:03.7]} 83. g6 {[%clk 0:00:04.9]} 83...
Bxg6+ {[%clk 0:00:03.3]} 84. Kxg6 {[%clk 0:00:05.3]} 1-0

[Event "Early-Titled-Tuesday-Blitz-March-05-2024"]
[Site "Chess.com"]
[Date "2024.03.05"]
[Round "5"]
[White "ARMQUEEN"]
[Black "Lady_Nika"]
[Result "0-1"]
[WhiteElo "2418"]
[BlackElo "2568"]
[TimeControl "180+1"]
[EndTime "9:00:21 PST"]
[Termination "Lady_Nika won on time"]

1. e4 {[%clk 0:02:31.1]} 1... b6 {[%clk 0:02:58.9]} 2. Nc3 {[%clk 0:02:29.9]}
2... Bb7 {[%clk 0:02:59.2]} 3. d4 {[%clk 0:02:30.6]} 3... e6 {[%clk 0:02:59.3]}
4. f4 {[%clk 0:02:30.9]} 4... d5 {[%clk 0:02:59.5]} 5. e5 {[%clk 0:02:29.5]}
5... Ne7 {[%clk 0:02:59.7]} 6. Nf3 {[%clk 0:02:29.8]} 6... c5 {[%clk 0:02:59.9]}
7. Be2 {[%clk 0:02:28.8]} 7... Nf5 {[%clk 0:02:58.6]} 8. Nb1 {[%clk 0:02:07.2]}
8... cxd4 {[%clk 0:02:57.9]} 9. Nxd4 {[%clk 0:02:06.8]} 9... Qh4+ {[%clk
0:02:57.5]} 10. g3 {[%clk 0:01:57.8]} 10... Nxg3 {[%clk 0:02:43.2]} 11. Nf3
{[%clk 0:01:57.2]} 11... Qh3 {[%clk 0:02:43.2]} 12. Rg1 {[%clk 0:01:51.3]} 12...
Nxe2 {[%clk 0:02:40.3]} 13. Qxe2 {[%clk 0:01:50.9]} 13... Ba6 {[%clk 0:02:38.2]}
14. Qf2 {[%clk 0:01:44.2]} 14... Bc5 {[%clk 0:02:35.5]} 15. Be3 {[%clk
0:01:44.1]} 15... Bxe3 {[%clk 0:02:33]} 16. Qxe3 {[%clk 0:01:44.1]} 16... O-O
{[%clk 0:02:32.9]} 17. Nbd2 {[%clk 0:01:43.1]} 17... Nd7 {[%clk 0:02:29.2]} 18.
O-O-O {[%clk 0:01:42.9]} 18... Rac8 {[%clk 0:02:25.1]} 19. Rg3 {[%clk
0:01:40.8]} 19... Qh6 {[%clk 0:02:24.4]} 20. Rdg1 {[%clk 0:01:39]} 20... g6
{[%clk 0:02:20.8]} 21. Ng5 {[%clk 0:01:38.2]} 21... Qg7 {[%clk 0:02:19.3]} 22.
Rh3 {[%clk 0:01:36.2]} 22... h6 {[%clk 0:02:19.2]} 23. Ngf3 {[%clk 0:01:34.6]}
23... Nc5 {[%clk 0:02:15.8]} 24. Nh4 {[%clk 0:01:31.5]} 24... Nd3+ {[%clk
0:02:12.8]} 25. Kb1 {[%clk 0:01:30.8]} 25... Nb4 {[%clk 0:02:12.9]} 26. Qa3
{[%clk 0:01:05.7]} 26... Rxc2 {[%clk 0:01:38.9]} 27. Qxb4 {[%clk 0:01:04.2]}
27... Rfc8 {[%clk 0:01:38.8]} 28. Nb3 {[%clk 0:00:57.4]} 28... R2c4 {[%clk
0:01:11.6]} 29. Qd2 {[%clk 0:00:53.2]} 29... Kf8 {[%clk 0:00:51.2]} 30. Rhg3
{[%clk 0:00:50.9]} 30... Qh7 {[%clk 0:00:49.3]} 31. Nd4 {[%clk 0:00:45.2]} 31...
g5+ {[%clk 0:00:47.4]} 32. f5 {[%clk 0:00:30.1]} 32... gxh4 {[%clk 0:00:47.1]}
33. Rg8+ {[%clk 0:00:25.9]} 33... Ke7 {[%clk 0:00:36.4]} 34. R8g7 {[%clk
0:00:19.4]} 34... Rxd4 {[%clk 0:00:20.6]} 35. Qxd4 {[%clk 0:00:17.5]} 35...
Qxf5+ {[%clk 0:00:20.7]} 36. Ka1 {[%clk 0:00:17.2]} 36... Rc5 {[%clk 0:00:14.6]}
37. Qxh4+ {[%clk 0:00:14.8]} 37... Kd7 {[%clk 0:00:13.3]} 38. Qa4+ {[%clk
0:00:13.9]} 38... Bb5 {[%clk 0:00:12.6]} 39. Qxa7+ {[%clk 0:00:13.9]} 39... Rc7
{[%clk 0:00:12.8]} 40. Qxb6 {[%clk 0:00:13.2]} 40... Bc4 {[%clk 0:00:05.2]} 41.
Qd6+ {[%clk 0:00:10.9]} 41... Kc8 {[%clk 0:00:05.5]} 42. Rg8+ {[%clk 0:00:11.2]}
42... Kb7 {[%clk 0:00:05.9]} 43. Qb4+ {[%clk 0:00:11.3]} 43... Kc6 {[%clk
0:00:06.4]} 44. Rd8 {[%clk 0:00:07.5]} 44... Qxe5 {[%clk 0:00:05.9]} 45. Rb8
{[%clk 0:00:06.2]} 45... Qe3 {[%clk 0:00:05.1]} 46. Rd1 {[%clk 0:00:05.5]} 46...
Kd7 {[%clk 0:00:04.7]} 47. Qa4+ {[%clk 0:00:04.9]} 47... Ke7 {[%clk 0:00:02.8]}
48. Qe8+ {[%clk 0:00:04.9]} 48... Kd6 {[%clk 0:00:03.1]} 49. Qd8+ {[%clk
0:00:05.2]} 49... Rd7 {[%clk 0:00:03.6]} 50. Qb6+ {[%clk 0:00:05.4]} 50... Qxb6
{[%clk 0:00:03.9]} 51. Rxb6+ {[%clk 0:00:06.3]} 51... Kc5 {[%clk 0:00:04.5]} 52.
Rb8 {[%clk 0:00:06.4]} 52... Ra7 {[%clk 0:00:04.5]} 53. a3 {[%clk 0:00:06.6]}
53... f5 {[%clk 0:00:03.5]} 54. b4+ {[%clk 0:00:06.8]} 54... Kd6 {[%clk
0:00:03.8]} 55. Kb2 {[%clk 0:00:07.2]} 55... Ke5 {[%clk 0:00:03.5]} 56. Re1+
{[%clk 0:00:06.8]} 56... Kf6 {[%clk 0:00:04]} 57. Rb6 {[%clk 0:00:06.3]} 57...
d4 {[%clk 0:00:03.9]} 58. Rd6 {[%clk 0:00:05.1]} 58... Bd5 {[%clk 0:00:02.8]}
59. b5 {[%clk 0:00:04.7]} 59... Rc7 {[%clk 0:00:02.8]} 60. b6 {[%clk 0:00:04.9]}
60... Rb7 {[%clk 0:00:03.3]} 61. a4 {[%clk 0:00:05.2]} 61... Be4 {[%clk
0:00:03.6]} 62. a5 {[%clk 0:00:05.3]} 62... d3 {[%clk 0:00:03.9]} 63. a6 {[%clk
0:00:05]} 63... Rb8 {[%clk 0:00:04.4]} 64. Kc3 {[%clk 0:00:04.4]} 64... Rc8+
{[%clk 0:00:04.7]} 65. Kd2 {[%clk 0:00:04.3]} 65... Rc2+ {[%clk 0:00:05]} 66.
Ke3 {[%clk 0:00:03.5]} 66... Ke5 {[%clk 0:00:05.5]} 67. Rxe6+ {[%clk 0:00:03.5]}
67... Kxe6 {[%clk 0:00:05.5]} 68. b7 {[%clk 0:00:03.5]} 68... Rb2 {[%clk
0:00:04.9]} 69. Kd4 {[%clk 0:00:02.1]} 69... Rb4+ {[%clk 0:00:04.7]} 70. Kc3
{[%clk 0:00:02]} 70... Rb6 {[%clk 0:00:03.9]} 71. Rxe4+ {[%clk 0:00:02.2]} 71...
fxe4 {[%clk 0:00:04]} 72. a7 {[%clk 0:00:02.6]} 72... Rc6+ {[%clk 0:00:04.3]}
73. Kd4 {[%clk 0:00:03]} 73... Rd6+ {[%clk 0:00:04]} 74. Kxe4 {[%clk 0:00:01.8]}
74... d2 {[%clk 0:00:04.9]} 75. b8=Q {[%clk 0:00:01.5]} 75... d1=Q {[%clk
0:00:05.4]} 76. Qe8+ {[%clk 0:00:01.7]} 76... Kf6 {[%clk 0:00:05.8]} 77. Qe5+
{[%clk 0:00:01.9]} 77... Kf7 {[%clk 0:00:05.9]} 78. a8=Q {[%clk 0:00:02]} 78...
Qe2+ {[%clk 0:00:05.2]} 79. Kf4 {[%clk 0:00:02]} 79... Qxh2+ {[%clk 0:00:05]}
80. Kf5 {[%clk 0:00:01.1]} 80... Qh5+ {[%clk 0:00:05.1]} 81. Ke4 {[%clk
0:00:01.3]} 81... Qh1+ {[%clk 0:00:02.9]} 0-1